lending/lending_fUSD_20240710
["ID","MTS","AMOUNT","RATE_DAILY","PERIOD"]
[331612272,1720581053934,-1625.99,0.00013799,2]
[331612273,1720581053943,-500.0,0.00013799,2]
[331612274,1720581053953,-1126.37,0.00013799,2]
[331612275,1720581053962,-500.0,0.00013799,2]
[331612276,1720581053971,-536.58,0.00013799,2]
[331612277,1720581053980,-500.0,0.00013799,2]
[331612278,1720581053990,-1550.4,0.00013799,2]
[331612279,1720581053999,-796.17,0.00013799,2]
[331612280,1720581054008,-1793.77,0.00013799,2]
[331612281,1720581054017,-500.0,0.00013799,2]
[331612282,1720581054027,-500.0,0.00013799,2]
[331612283,1720581054037,-500.0,0.00013799,2]
[331612284,1720581054046,-535.67,0.00013799,2]
[331612285,1720581054056,-500.0,0.00013799,2]
[331612286,1720581054065,-500.0,0.00013799,2]
[331612287,1720581054074,-500.0,0.00013799,2]
[331612288,1720581054083,-500.0,0.00013799,2]
[331612289,1720581054092,-711.91,0.00013799,2]
[331612290,1720581054110,-2500.0,0.00013799,3]
[331612291,1720581054122,-500.0,0.00013799,2]
[331612292,1720581054132,-500.0,0.00013799,2]
[331612293,1720581054144,-695.8,0.00013799,2]
[331612294,1720581054155,-1077.02,0.00013799,2]
[331612295,1720581054165,-500.0,0.00013799,2]
[331612296,1720581054175,-500.0,0.00013799,2]
[331612297,1720581054186,-500.0,0.00013799,2]
[331612298,1720581054196,-972.33,0.00013799,2]
[331612299,1720581054206,-1310.48,0.00013799,2]
[331612300,1720581054217,-904.38,0.00013799,2]
[331612301,1720581054227,-500.0,0.00013799,2]
[331612302,1720581054236,-2503.8,0.00013799,2]
[331612303,1720581054246,-500.0,0.00013799,2]
[331612304,1720581054256,-2530.03,0.00013799,2]
[331612305,1720581054266,-500.0,0.00013799,2]
[331612306,1720581054276,-2027.68,0.00013799,2]
[331612307,1720581054286,-500.0,0.00013799,2]
[331612308,1720581054296,-934.07,0.00013799,2]
[331612309,1720581054306,-1119.4,0.00013799,2]
[331612310,1720581054317,-1358.85,0.00013799,2]
[331612311,1720581054327,-500.0,0.00013799,2]
[331612312,1720581054336,-500.0,0.00013799,2]
[331612313,1720581054346,-500.0,0.00013799,2]
[331612314,1720581054356,-500.0,0.00013799,2]
[331612315,1720581054368,-1345.13,0.00013799,2]
[331612316,1720581054378,-500.0,0.00013799,2]
[331612317,1720581054388,-566.69,0.00013799,2]
[331612318,1720581054399,-2866.12,0.00013799,2]
[331612319,1720581054409,-500.0,0.00013799,2]
[331612320,1720581054419,-500.0,0.00013799,2]
[331612321,1720581054429,-500.0,0.00013799,2]
[331612322,1720581054439,-500.0,0.00013799,2]
[331612323,1720581054449,-577.67,0.00013799,2]
[331612324,1720581054460,-500.0,0.00013799,2]
[331612325,1720581054470,-1136.74,0.00013799,2]
[331612326,1720581054480,-726.03,0.00013799,2]
[331612327,1720581054490,-262.50648878,0.00013799,2]
[331612328,1720581054500,-2577.64,0.00013799,2]
[331612329,1720581054510,-159.52438923,0.00013799,2]
[331612330,1720581054520,-500.0,0.00013799,2]
[331612331,1720581054531,-1203.54,0.00013799,2]
[331612332,1720581054541,-500.0,0.00013799,2]
[331612333,1720581054556,-781.19,0.00013799,2]
[331612334,1720581054567,-500.0,0.00013799,2]
[331612335,1720581054578,-555.77,0.00013799,2]
[331612336,1720581054589,-1376.23,0.00013799,2]
[331612337,1720581054599,-1701.87,0.00013799,2]
[331612338,1720581054609,-1504.77,0.00013799,2]
[331612339,1720581054620,-2419.45,0.00013799,2]
[331612340,1720581054630,-693.06,0.00013799,2]
[331612341,1720581054641,-500.0,0.00013799,2]
[331612342,1720581054653,-1297.36,0.00013799,2]
[331612343,1720581054664,-1147.29,0.00013799,2]
[331612344,1720581054675,-898.08,0.00013799,2]
[331612345,1720581054685,-782.14,0.00013799,2]
[331612346,1720581054695,-751.59,0.00013799,2]
[331612347,1720581054705,-500.0,0.00013799,2]
[331612348,1720581054716,-1135.25,0.00013799,2]
[331612349,1720581054727,-500.0,0.00013799,2]
[331612350,1720581054737,-500.0,0.00013799,2]
[331612351,1720581054747,-714.06,0.00013799,2]
[331612352,1720581054757,-500.0,0.00013799,2]
[331612353,1720581054767,-500.0,0.00013799,2]
[331612354,1720581054778,-500.0,0.00013799,2]
[331612355,1720581054791,-500.0,0.00013799,2]
[331612356,1720581054801,-500.0,0.00013799,2]
[331612357,1720581054811,-537.76,0.00013799,2]
[331612358,1720581054823,-695.26,0.00013799,2]
[331612359,1720581054834,-500.0,0.00013799,2]
[331612360,1720581054845,-500.0,0.00013799,2]
[331612361,1720581054855,-500.0,0.00013799,2]
[331612362,1720581054865,-500.0,0.00013799,2]
[331612363,1720581054876,-861.66,0.00013799,2]
[331612364,1720581054886,-500.0,0.00013799,2]
[331612365,1720581054897,-943.98,0.00013799,2]
[331612366,1720581054908,-909.54,0.00013799,2]
[331612367,1720581054918,-500.0,0.00013799,2]
[331612368,1720581054931,-880.81,0.00013799,2]
[331612369,1720581054941,-500.0,0.00013799,2]
[331612370,1720581054952,-500.0,0.00013799,2]
[331612371,1720581054963,-762.23,0.00013799,2]
[331612372,1720581054973,-1996.31,0.00013799,2]
[331612373,1720581054989,-500.0,0.00013799,2]
[331612374,1720581054999,-500.0,0.00013799,2]
[331612375,1720581055010,-500.0,0.00013799,2]
[331612376,1720581055020,-500.0,0.00013799,2]
[331612377,1720581055032,-812.79,0.00013799,2]
[331612378,1720581055042,-513.5,0.00013799,2]
[331612379,1720581055054,-500.0,0.00013799,2]
[331612380,1720581055064,-1752.97,0.00013799,2]
[331612381,1720581055077,-886.17,0.00013799,2]
[331612382,1720581055089,-630.75,0.00013799,2]
[331612383,1720581055101,-596.09,0.00013799,2]
[331612384,1720581055113,-693.26,0.00013799,2]
[331612385,1720581055123,-1545.57,0.00013799,2]
[331612386,1720581055134,-726.15,0.00013799,2]
[331612387,1720581055144,-500.0,0.00013799,2]
[331612388,1720581055155,-500.0,0.00013799,2]
[331612389,1720581055165,-506.01,0.00013799,2]
[331612390,1720581055175,-824.82,0.00013799,2]
[331612391,1720581055186,-500.0,0.00013799,2]
[331612392,1720581055196,-500.0,0.00013799,2]
[331612393,1720581055207,-500.0,0.00013799,2]
[331612394,1720581055217,-500.0,0.00013799,2]
[331612395,1720581055227,-543.13,0.00013799,2]
[331612396,1720581055237,-500.0,0.00013799,2]
[331612397,1720581055247,-500.0,0.00013799,2]
[331612398,1720581055257,-688.49,0.00013799,2]
[331612399,1720581055267,-500.0,0.00013799,2]
[331612400,1720581055276,-209.02692432,0.00013799,2]
[331612401,1720581055286,-964.6,0.00013799,2]
[331612402,1720581055296,-735.3,0.00013799,2]
[331612403,1720581055306,-782.52,0.00013799,2]
[331612404,1720581055316,-1355.91,0.00013799,2]
[331612405,1720581055327,-500.0,0.00013799,2]
[331612406,1720581055337,-500.0,0.00013799,2]
[331612407,1720581055346,-500.0,0.00013799,2]
[331612408,1720581055357,-659.85,0.00013799,2]
[331612409,1720581055368,-500.0,0.00013799,2]
[331612410,1720581055377,-500.0,0.00013799,2]
[331612411,1720581055387,-500.0,0.00013799,2]
[331612412,1720581055396,-500.0,0.00013799,2]
[331612413,1720581055407,-500.0,0.00013799,2]
[331612414,1720581055421,-707.61,0.00013799,2]
[331612415,1720581055431,-806.14,0.00013799,2]
[331612416,1720581055442,-3141.39,0.00013799,2]
[331612417,1720581055452,-500.0,0.00013799,2]
[331612418,1720581055462,-500.0,0.00013799,2]
[331612419,1720581055472,-2356.62,0.00013799,2]
[331612420,1720581055482,-953.6,0.00013799,2]
[331612421,1720581055492,-500.0,0.00013799,2]
[331612422,1720581055502,-1788.57,0.00013799,2]
[331612423,1720581055512,-1153.94,0.00013799,2]
[331612424,1720581055522,-500.0,0.00013799,2]
[331612425,1720581055532,-848.55,0.00013799,2]
[331612426,1720581055542,-2336.33,0.00013799,2]
[331612427,1720581055552,-628.95,0.00013799,2]
[331612428,1720581055562,-500.0,0.00013799,2]
[331612429,1720581055572,-500.0,0.00013799,2]
[331612430,1720581055584,-500.0,0.00013799,2]
[331612431,1720581055594,-500.0,0.00013799,2]
[331612432,1720581055605,-831.29,0.00013799,2]
[331612433,1720581055615,-2619.95,0.00013799,2]
[331612434,1720581055626,-500.0,0.00013799,2]
[331612435,1720581055636,-1255.81,0.00013799,2]
[331612436,1720581055647,-595.19,0.00013799,2]
[331612437,1720581055658,-659.35,0.00013799,2]
[331612438,1720581055667,-500.0,0.00013799,2]
[331612439,1720581055677,-1458.97,0.00013799,2]
[331612440,1720581055689,-500.0,0.00013799,2]
[331612441,1720581055699,-500.0,0.00013799,2]
[331612442,1720581055709,-500.0,0.00013799,2]
[331612443,1720581055718,-1667.02,0.00013799,2]
[331612444,1720581055728,-500.0,0.00013799,2]
[331612445,1720581055737,-1446.33,0.00013799,2]
[331612446,1720581055747,-500.0,0.00013799,2]
[331612447,1720581055756,-500.0,0.00013799,2]
[331612448,1720581055766,-525.95,0.00013799,2]
[331612449,1720581055776,-722.55,0.00013799,2]
[331612450,1720581055785,-500.0,0.00013799,2]
[331612451,1720581055795,-863.57,0.00013799,2]
[331612452,1720581055804,-500.0,0.00013799,2]
[331612453,1720581055814,-500.0,0.00013799,2]
[331612454,1720581055824,-500.0,0.00013799,2]
[331612455,1720581055833,-740.17,0.00013799,2]
[331612456,1720581055843,-500.0,0.00013799,2]
[331612457,1720581055853,-1035.89,0.00013799,2]
[331612458,1720581055862,-1853.21,0.00013799,2]
[331612459,1720581055874,-674.35,0.00013799,2]
[331612460,1720581055883,-761.23,0.00013799,2]
[331612461,1720581055893,-500.0,0.00013799,2]
[331612462,1720581056489,-2202.31,0.00013799,2]
[331612463,1720581056499,-500.0,0.00013799,2]
[331612464,1720581056508,-1134.1,0.00013799,2]
[331612465,1720581056518,-500.0,0.00013799,2]
[331612466,1720581056528,-926.48,0.00013799,2]
[331612467,1720581056538,-654.89,0.00013799,2]
[331612468,1720581056549,-1482.14,0.00013799,2]
[331612469,1720581056559,-2311.77,0.00013799,2]
[331612470,1720581056569,-1232.68,0.00013799,2]
[331612471,1720581056579,-500.0,0.00013799,2]
[331612472,1720581056590,-500.0,0.00013799,2]
[331612473,1720581056599,-500.0,0.00013799,2]
[331612474,1720581056609,-615.72,0.00013799,2]
[331612475,1720581056618,-500.0,0.00013799,2]
[331612476,1720581056628,-500.0,0.00013799,2]
[331612477,1720581056638,-500.0,0.00013799,2]
[331612478,1720581056648,-906.04,0.00013799,2]
[331612479,1720581056659,-679.31,0.00013799,2]
[331612480,1720581056670,-639.1782861,0.00013799,2]
[331612481,1720581056680,-652.6,0.00013799,2]
[331612482,1720581056691,-844.01,0.00013799,2]
[331612483,1720581056701,-1552.46,0.00013799,2]
[331612484,1720581056711,-500.0,0.00013799,2]
[331612485,1720581056720,-500.0,0.00013799,2]
[331612486,1720581056733,-530.57,0.00013799,2]
[331612487,1720581056747,-1208.95,0.00013799,2]
[331612488,1720581056758,-1604.71,0.00013799,2]
[331612489,1720581056768,-500.0,0.00013799,2]
[331612490,1720581056778,-1065.89,0.00013799,2]
[331612491,1720581056788,-1580.49,0.00013799,2]
[331612492,1720581056799,-2021.19,0.00013799,2]
[331612493,1720581056810,-500.0,0.00013799,2]
[331612494,1720581056820,-500.0,0.00013799,2]
[331612495,1720581056832,-1350.72,0.00013799,2]
[331612496,1720581056843,-806.78,0.00013799,2]
[331612497,1720581056853,-500.0,0.00013799,2]
[331612498,1720581056863,-655.46,0.00013799,2]
[331612499,1720581056877,-604.46,0.00013799,2]
[331612500,1720581056886,-1003.35,0.00013799,2]
[331612501,1720581056898,-661.74,0.00013799,2]
[331612502,1720581056907,-500.0,0.00013799,2]
[331612503,1720581056918,-500.0,0.00013799,2]
[331612504,1720581056931,-500.0,0.00013799,2]
[331612505,1720581056941,-500.0,0.00013799,2]
[331612506,1720581056951,-645.78,0.00013799,2]
[331612507,1720581056961,-848.82,0.00013799,2]
[331612508,1720581056971,-500.0,0.00013799,2]
[331612509,1720581056981,-500.0,0.00013799,2]
[331612510,1720581056991,-500.0,0.00013799,2]
[331612511,1720581057001,-280.26866399,0.00013799,2]
[331612512,1720581057011,-500.0,0.00013799,2]
[331612513,1720581057020,-1378.91,0.00013799,2]
[331612514,1720581057030,-1370.12,0.00013799,2]
[331612515,1720581057040,-670.55,0.00013799,2]
[331612516,1720581057050,-1937.4,0.00013799,2]
[331612517,1720581057060,-500.0,0.00013799,2]
[331612518,1720581057070,-664.15,0.00013799,2]
[331612519,1720581057081,-2007.15,0.00013799,2]
[331612520,1720581057091,-2140.47,0.00013799,2]
[331612521,1720581057101,-500.0,0.00013799,2]
[331612522,1720581057111,-500.0,0.00013799,2]
[331612523,1720581057121,-500.0,0.00013799,2]
[331612524,1720581057131,-500.0,0.00013799,2]
[331612525,1720581057141,-2688.43,0.00013799,2]
[331612526,1720581057151,-855.83,0.00013799,2]
[331612527,1720581057160,-1912.51,0.00013799,2]
[331612528,1720581057170,-920.07,0.00013799,2]
[331612529,1720581057180,-500.0,0.00013799,2]
[331612530,1720581057190,-2877.44,0.00013799,2]
[331612531,1720581057200,-1109.79,0.00013799,2]
[331612532,1720581057210,-844.98,0.00013799,2]
[331612533,1720581057220,-2370.99,0.00013799,2]
[331612534,1720581057231,-500.0,0.00013799,2]
[331612535,1720581057241,-500.0,0.00013799,2]
[331612536,1720581057251,-637.89,0.00013799,2]
[331612537,1720581057261,-553.91,0.00013799,2]
[331612538,1720581057271,-500.0,0.00013799,2]
[331612539,1720581057282,-500.0,0.00013799,2]
[331612540,1720581057292,-510.03,0.00013799,2]
[331612541,1720581057303,-504.42,0.00013799,2]
[331612542,1720581057313,-970.39,0.00013799,2]
[331612543,1720581057323,-500.0,0.00013799,2]
[331612544,1720581057333,-500.0,0.00013799,2]
[331612545,1720581057343,-500.0,0.00013799,2]
[331612546,1720581057353,-836.59,0.00013799,2]
[331612547,1720581057363,-1265.24,0.00013799,2]
[331612548,1720581057375,-4394294.6979312,0.000138,2]
[331612549,1720581058229,-121440.66108605,0.000138,2]
[331612550,1720581058241,-658.090015,0.000138,2]
[331612551,1720581058254,-2550.50257882,0.000138,2]
[331612552,1720581058370,-645.93668999,0.000138,2]
[331612553,1720581058382,-770.69333021,0.000138,2]
[331612554,1720581058394,-40478.50518739,0.000138,2]
[331612555,1720581059501,-708.52514316,0.00013257,2]
[331612556,1720581059553,-9291.47485684,0.00013257,2]
[331612557,1720581059563,-500.0,0.00013698,2]
[331612558,1720581059572,-500.0,0.00013752,2]
[331612559,1720581059581,-500.0,0.00013753,2]
[331612560,1720581059590,-36852.96413123,0.000138,2]
[331612561,1720581059602,-2759.5004898,0.000138,2]
[331612562,1720581059613,-469.90999999,0.000138,2]
[331612563,1720581060406,-537.16417105,0.000138,2]
[331612564,1720581060437,-805.51081832,0.000138,2]
[331612565,1720581060449,-554.68959839,0.000138,2]
[331612566,1720581060462,-415.001,0.000138,2]
[331612567,1720581061278,-500.0,0.00013698,2]
[331612568,1720581061288,-4.73216729,0.00013698,2]
[331612569,1720581061300,-495.26783271,0.00013698,2]
[331612570,1720581061309,-55.42177212,0.00013753,2]
[331612571,1720581063590,-400.57,0.00013753,2]
[331612572,1720581063606,-44.00822788,0.00013753,2]
[331612573,1720581063615,-500.0,0.00013753,2]
[331612574,1720581063624,-215.89102205,0.000138,2]
[331612575,1720581063635,-3208.99999999,0.000138,2]
[331612576,1720581063647,-512.52,0.000138,2]
[331612577,1720581063659,-955.08487786,0.000138,2]
[331612578,1720581063671,-35360.87399905,0.000138,2]
[331612579,1720581063682,-877.72825,0.000138,2]
[331612580,1720581063693,-3598.5206157,0.000138,2]
[331612581,1720581063703,-14348.49731391,0.000138,2]
[331612582,1720581098879,287.45,0.00010909,2]
[331612583,1720581169725,239.76,0.00010959,2]
[331612584,1720581180264,199.8,0.00010959,2]
[331612585,1720581190773,166.5,0.00010959,2]
[331612586,1720581201292,778.28685249,0.00010959,2]
[331612587,1720581201322,54.26314751,0.00010959,2]
[331612588,1720581242839,1493.78031071,0.00011199,2]
[331612589,1720581242862,3982.50361391,0.00011199,2]
[331612590,1720581244770,1325.10052564,6.762e-05,7]
[331612591,1720581294408,151.43,0.00010959,2]
[331612592,1720581304855,686.74964287,8.196e-05,2]
[331612593,1720581364040,39767.0,0.00027,120]
[331612594,1720581428210,293.62163204,9.934e-05,2]
[331612595,1720581457554,155.0,0.00011199,2]
[331612596,1720581475492,227.29136124,0.00011199,2]
[331612597,1720581550745,6836.3,0.00027,120]
[331612598,1720581783786,200.0,0.0001079,2]
[331612599,1720581783814,73.07,0.0001079,2]
[331612600,1720581889078,155.0,0.00011199,2]
[331612601,1720581904083,155.0,0.00011199,2]
[331612602,1720581955013,227.29136124,0.00011199,2]
[331612603,1720581970015,227.29136124,0.00011199,2]
[331612745,1720582210144,-651.64755442,0.00012241,2]
[331612747,1720582232468,-153.16279109,0.00012353,2]
[331612748,1720582232478,-393.1924,0.0001256,2]
[331612749,1720582232487,-1899.85,0.0001266,2]
[331612750,1720582232498,-250.0,0.00012669,2]
[331612751,1720582232509,-250.0,0.00012695,2]
[331612752,1720582232519,-164.94,0.00012759,2]
[331612753,1720582232530,-1000.0,0.00012777,2]
[331612754,1720582232541,-169.43,0.00012813,2]
[331612755,1720582232551,-273.07,0.00013054,2]
[331612756,1720582232561,-300.0,0.00013127,2]
[331612757,1720582232570,-389.44402368,0.00013128,2]
[331612758,1720582232580,-5000.0,0.00013128,2]
[331612759,1720582232590,-43448.0,0.00013158,2]
[331612760,1720582232600,-697.69222662,0.0001327,2]
[331612761,1720582232610,-697.69222663,0.0001327,2]
[331612762,1720582232620,-535.59904363,0.0001329,2]
[331612763,1720582232631,-557.91,0.0001329,2]
[331612764,1720582232641,-227.29136124,0.00013472,2]
[331612765,1720582232652,-185.65274336,0.00013598,2]
[331612766,1720582232661,-180.51469047,0.00013598,2]
[331612767,1720582232671,-20606.5209,0.00013598,2]
[331612768,1720582232680,-500.0,0.00013598,2]
[331612769,1720582232690,-424.8441,0.00013598,2]
[331612770,1720582232700,-519.5528,0.00013598,2]
[331612771,1720582232710,-2500.0,0.00013598,2]
[331612772,1720582232720,-185.65274333,0.00013612,2]
[331612773,1720582232729,-185.65274333,0.00013626,2]
[331612774,1720582232741,-185.65274333,0.00013639,2]
[331612775,1720582232753,-185.65274333,0.00013653,2]
[331612776,1720582232765,-334.56463,0.0001366,2]
[331612777,1720582232774,-500.0,0.00013698,2]
[331612778,1720582232784,-500.0,0.00013698,2]
[331612779,1720582232793,-500.0,0.00013698,2]
[331612780,1720582232803,-500.0,0.00013698,2]
[331612781,1720582232813,-500.0,0.00013698,2]
[331612782,1720582232823,-500.0,0.00013698,2]
[331612783,1720582232833,-500.0,0.00013698,2]
[331612784,1720582232844,-500.0,0.00013698,2]
[331612785,1720582232854,-500.0,0.00013698,2]
[331612786,1720582232864,-500.0,0.00013698,2]
[331612787,1720582232874,-500.0,0.00013698,2]
[331612788,1720582232884,-500.0,0.00013698,2]
[331612789,1720582232898,-500.0,0.00013698,2]
[331612790,1720582232909,-500.0,0.00013698,2]
[331612791,1720582232920,-472.2386968,0.00013698,2]
[331612792,1720582232931,-500.0,0.00013698,2]
[331612793,1720582232943,-500.0,0.00013698,2]
[331612794,1720582232952,-500.0,0.00013698,2]
[331612795,1720582232962,-644.55285774,0.00013698,2]
[331612796,1720582232972,-500.0,0.00013698,2]
[331612797,1720582232983,-500.0,0.00013698,2]
[331612798,1720582232993,-1978.16,0.00013698,2]
[331612799,1720582233004,-2746.69,0.00013698,2]
[331612800,1720582233014,-500.0,0.00013698,2]
[331612801,1720582233024,-571.59593757,0.00013698,2]
[331612802,1720582233038,-927.85,0.00013698,2]
[331612803,1720582233050,-500.0,0.00013698,2]
[331612804,1720582233062,-885.72,0.00013698,2]
[331612805,1720582233071,-500.0,0.00013698,2]
[331612806,1720582233081,-786.86,0.00013698,2]
[331612807,1720582233092,-500.0,0.00013698,2]
[331612808,1720582233103,-500.0,0.00013698,2]
[331612809,1720582233112,-500.0,0.00013698,2]
[331612810,1720582233122,-796.15,0.00013698,2]
[331612812,1720582233136,-500.0,0.00013698,2]
[331612813,1720582233146,-500.0,0.00013698,2]
[331612815,1720582233155,-975.45,0.00013698,2]
[331612819,1720582233165,-500.0,0.00013698,2]
[331612822,1720582233175,-500.0,0.00013698,2]
[331612823,1720582233185,-500.0,0.00013698,2]
[331612824,1720582233195,-500.0,0.00013698,2]
[331612825,1720582233206,-408.96282283,0.00013698,2]
[331612826,1720582233216,-500.0,0.00013698,2]
[331612827,1720582233226,-507.67,0.00013698,2]
[331612828,1720582233237,-500.0,0.00013698,2]
[331612829,1720582233247,-500.0,0.00013698,2]
[331612830,1720582233257,-500.0,0.00013698,2]
[331612831,1720582233268,-500.0,0.00013698,2]
[331612832,1720582233278,-500.0,0.00013698,2]
[331612833,1720582233288,-515.35,0.00013698,2]
[331612834,1720582233299,-774.0,0.00013698,2]
[331612835,1720582233310,-453.6525088,0.00013698,2]
[331612836,1720582233320,-500.0,0.00013698,2]
[331612837,1720582233331,-500.0,0.00013698,2]
[331612838,1720582233343,-500.0,0.00013698,2]
[331612839,1720582233354,-500.0,0.00013698,2]
[331612840,1720582233368,-500.0,0.00013698,2]
[331612841,1720582233378,-500.0,0.00013698,2]
[331612842,1720582233388,-500.0,0.00013698,2]
[331612843,1720582233398,-391.67446121,0.00013698,2]
[331612844,1720582233408,-500.0,0.00013698,2]
[331612845,1720582233419,-500.0,0.00013698,2]
[331612846,1720582233429,-500.0,0.00013698,2]
[331612847,1720582233439,-1582.35,0.00013698,2]
[331612848,1720582233449,-500.0,0.00013698,2]
[331612849,1720582233461,-500.0,0.00013698,2]
[331612850,1720582233471,-1066.68,0.00013698,2]
[331612851,1720582233482,-500.0,0.00013698,2]
[331612852,1720582233493,-500.0,0.00013698,2]
[331612853,1720582233504,-500.0,0.00013698,2]
[331612854,1720582233514,-1520.75,0.00013698,2]
[331612855,1720582233524,-500.0,0.00013698,2]
[331612856,1720582233535,-500.0,0.00013698,2]
[331612857,1720582233546,-500.0,0.00013698,2]
[331612858,1720582233556,-500.0,0.00013698,2]
[331612859,1720582233566,-500.0,0.00013698,2]
[331612860,1720582233575,-500.0,0.00013698,2]
[331612861,1720582233585,-664.31,0.00013698,2]
[331612862,1720582233595,-1119.36,0.00013698,2]
[331612863,1720582233604,-500.0,0.00013698,2]
[331612864,1720582233616,-514.22,0.00013698,2]
[331612865,1720582233630,-500.0,0.00013698,2]
[331612866,1720582233640,-500.0,0.00013698,2]
[331612867,1720582233651,-1596.95,0.00013698,2]
[331612868,1720582233660,-500.0,0.00013698,2]
[331612869,1720582233671,-500.0,0.00013698,2]
[331612870,1720582233683,-500.0,0.00013698,2]
[331612871,1720582233695,-513.35,0.00013698,2]
[331612872,1720582233706,-500.0,0.00013698,2]
[331612873,1720582233717,-500.0,0.00013698,2]
[331612874,1720582233727,-620.06130304,0.00013698,2]
[331612875,1720582233736,-510.89,0.00013698,2]
[331612876,1720582233746,-500.0,0.00013698,2]
[331612877,1720582233756,-500.0,0.00013698,2]
[331612878,1720582233766,-500.0,0.00013698,2]
[331612879,1720582233775,-500.0,0.00013698,2]
[331612880,1720582233785,-500.0,0.00013698,2]
[331612881,1720582233795,-664.38,0.00013698,2]
[331612882,1720582233805,-685.74,0.00013698,2]
[331612883,1720582233815,-500.0,0.00013698,2]
[331612884,1720582233824,-500.0,0.00013698,2]
[331612885,1720582233834,-2571.33,0.00013698,2]
[331612886,1720582233843,-304.46644499,0.00013698,2]
[331612887,1720582233853,-500.0,0.00013698,2]
[331612888,1720582233863,-838.5,0.00013698,2]
[331612889,1720582233872,-200.0,0.00013698,2]
[331612890,1720582233883,-633.73,0.00013698,2]
[331612891,1720582233892,-500.0,0.00013698,2]
[331612892,1720582233902,-789.35,0.00013698,2]
[331612893,1720582233911,-500.0,0.00013698,2]
[331612894,1720582233921,-500.0,0.00013698,2]
[331612895,1720582233930,-790.45,0.00013698,2]
[331612896,1720582233940,-645.46,0.00013698,2]
[331612897,1720582233950,-500.0,0.00013698,2]
[331612898,1720582233960,-500.0,0.00013698,2]
[331612899,1720582233969,-500.0,0.00013698,2]
[331612900,1720582233979,-500.0,0.00013698,2]
[331612901,1720582233989,-500.0,0.00013698,2]
[331612902,1720582233999,-500.0,0.00013698,2]
[331612903,1720582234009,-931.81,0.00013698,2]
[331612904,1720582234020,-1989.57,0.00013698,2]
[331612905,1720582234031,-627.35,0.00013698,2]
[331612906,1720582234044,-500.0,0.00013698,2]
[331612907,1720582234056,-500.0,0.00013698,2]
[331612908,1720582234067,-2399.47,0.00013698,2]
[331612909,1720582234077,-500.0,0.00013698,2]
[331612910,1720582234088,-500.0,0.00013698,2]
[331612911,1720582234098,-1299.41,0.00013698,2]
[331612912,1720582234108,-616.48,0.00013698,2]
[331612913,1720582234118,-633.38,0.00013698,2]
[331612914,1720582234129,-857.34,0.00013698,2]
[331612915,1720582234139,-1138.61,0.00013698,2]
[331612916,1720582234149,-500.0,0.00013698,2]
[331612917,1720582234158,-692.44,0.00013698,2]
[331612918,1720582234168,-868.48,0.00013698,2]
[331612919,1720582234178,-500.0,0.00013698,2]
[331612920,1720582234192,-1799.04,0.00013698,2]